[Event "*** Titled Tuesday Blitz"]
[Site "Chess.com"]
[Date "2020.11.10"]
[Round "4"]
[White "Smile2005"]
[Black "Sadykov_Ramil"]
[Result "0-1"]
[WhiteElo "2389"]
[BlackElo "2561"]
[TimeControl "180+1"]
[EndTime "10:40:58 PST"]
[Termination "Sadykov_Ramil won by resignation"]

1. Nf3 {[%clk 0:02:59.3]} 1... d5 {[%clk 0:02:50.6]} 2. g3 {[%clk 0:03:00.2]}
2... Nc6 {[%clk 0:02:49.8]} 3. Bg2 {[%clk 0:03:01.1]} 3... e5 {[%clk 0:02:49.4]}
4. O-O {[%clk 0:03:02]} 4... Be6 {[%clk 0:02:46.6]} 5. d3 {[%clk 0:03:02.2]}
5... f6 {[%clk 0:02:45.2]} 6. Nbd2 {[%clk 0:03:01.3]} 6... Qd7 {[%clk 0:02:42]}
7. c4 {[%clk 0:03:01.3]} 7... Nge7 {[%clk 0:02:38.4]} 8. cxd5 {[%clk 0:03:00.9]}
8... Nxd5 {[%clk 0:02:35.5]} 9. a3 {[%clk 0:02:57.7]} 9... h5 {[%clk 0:02:19.5]}
10. Nh4 {[%clk 0:02:53]} 10... Bc5 {[%clk 0:01:54]} 11. b4 {[%clk 0:02:42.8]}
11... Bd4 {[%clk 0:01:53.6]} 12. Bxd5 {[%clk 0:02:33.4]} 12... Bxa1 {[%clk
0:01:47.5]} 13. Bxe6 {[%clk 0:02:33.4]} 13... Qxe6 {[%clk 0:01:46.3]} 14. e3
{[%clk 0:02:29.9]} 14... g5 {[%clk 0:01:36.9]} 15. Nhf3 {[%clk 0:02:11.6]} 15...
Qa2 {[%clk 0:01:01.7]} 16. Ne4 {[%clk 0:02:04.3]} 16... Rh6 {[%clk 0:00:50.7]}
17. Re1 {[%clk 0:01:56.7]} 17... O-O-O {[%clk 0:00:45.4]} 18. Re2 {[%clk
0:01:55.9]} 18... Qb1 {[%clk 0:00:43.7]} 19. Qd2 {[%clk 0:01:29.3]} 19... Rxd3
{[%clk 0:00:36.9]} 20. Qc2 {[%clk 0:01:28.2]} 20... Qxc2 {[%clk 0:00:33.3]} 21.
Rxc2 {[%clk 0:01:29.1]} 21... g4 {[%clk 0:00:30.8]} 22. Nh4 {[%clk 0:01:25]}
22... Ne7 {[%clk 0:00:29.7]} 23. Kg2 {[%clk 0:01:22.4]} 23... f5 {[%clk
0:00:28.7]} 24. Nc5 {[%clk 0:01:21.8]} 24... Rd1 {[%clk 0:00:27.2]} 25. Nb3
{[%clk 0:01:17]} 25... Rc6 {[%clk 0:00:24.2]} 26. Rxc6 {[%clk 0:01:06]} 26...
bxc6 {[%clk 0:00:25.1]} 0-1

[Event "*** Titled Tuesday Blitz"]
[Site "Chess.com"]
[Date "2020.11.10"]
[Round "4"]
[White "Makswolf200817"]
[Black "Sueetin"]
[Result "0-1"]
[WhiteElo "2438"]
[BlackElo "2289"]
[TimeControl "180+1"]
[EndTime "10:40:59 PST"]
[Termination "Sueetin won by resignation"]

1. d4 {[%clk 0:03:00.9]} 1... Nf6 {[%clk 0:02:59.9]} 2. c4 {[%clk 0:02:50]} 2...
e6 {[%clk 0:02:59.9]} 3. g3 {[%clk 0:02:48.9]} 3... d5 {[%clk 0:02:57.3]} 4. Nf3
{[%clk 0:02:48.7]} 4... Bb4+ {[%clk 0:02:56.7]} 5. Bd2 {[%clk 0:02:48]} 5... Be7
{[%clk 0:02:57.1]} 6. Bg2 {[%clk 0:02:47.3]} 6... O-O {[%clk 0:02:56.3]} 7. O-O
{[%clk 0:02:46.6]} 7... c6 {[%clk 0:02:53.8]} 8. Qc2 {[%clk 0:02:44.1]} 8... Ne4
{[%clk 0:02:53]} 9. Bf4 {[%clk 0:02:39.6]} 9... Nd6 {[%clk 0:02:37.1]} 10. Nbd2
{[%clk 0:02:24.5]} 10... Nd7 {[%clk 0:02:27.1]} 11. e4 {[%clk 0:02:15.6]} 11...
dxe4 {[%clk 0:02:25.5]} 12. Nxe4 {[%clk 0:02:15.3]} 12... Nxe4 {[%clk 0:02:19]}
13. Qxe4 {[%clk 0:02:13.8]} 13... a5 {[%clk 0:02:10.1]} 14. Rad1 {[%clk
0:02:10.7]} 14... a4 {[%clk 0:02:09.1]} 15. Rfe1 {[%clk 0:02:03.9]} 15... Qa5
{[%clk 0:02:08.2]} 16. d5 {[%clk 0:01:52.7]} 16... cxd5 {[%clk 0:02:08]} 17.
cxd5 {[%clk 0:01:51.7]} 17... Nf6 {[%clk 0:02:08.2]} 18. Qe5 {[%clk 0:01:51]}
18... Bb4 {[%clk 0:02:03.5]} 19. Bd2 {[%clk 0:01:25.2]} 19... exd5 {[%clk
0:01:54.9]} 20. a3 {[%clk 0:01:20]} 20... Bxd2 {[%clk 0:01:53.2]} 21. Nxd2
{[%clk 0:01:17.3]} 21... Bg4 {[%clk 0:01:52.6]} 22. f3 {[%clk 0:01:11.9]} 22...
Rfe8 {[%clk 0:01:47.7]} 23. Qd4 {[%clk 0:01:10.1]} 23... Bf5 {[%clk 0:01:31.7]}
24. Kf2 {[%clk 0:01:00.4]} 24... h5 {[%clk 0:01:24.4]} 25. Bf1 {[%clk
0:00:59.4]} 25... Rxe1 {[%clk 0:01:10.8]} 26. Rxe1 {[%clk 0:00:59.2]} 26... Re8
{[%clk 0:01:11.3]} 27. Rxe8+ {[%clk 0:00:45.4]} 27... Nxe8 {[%clk 0:01:12.2]}
28. Ke3 {[%clk 0:00:42.5]} 28... Nc7 {[%clk 0:01:05.3]} 29. g4 {[%clk
0:00:37.1]} 29... hxg4 {[%clk 0:01:01.2]} 30. fxg4 {[%clk 0:00:36.7]} 30... Ne6
{[%clk 0:00:58.4]} 31. Qe5 {[%clk 0:00:27.9]} 31... d4+ {[%clk 0:00:55.9]} 0-1

[Event "*** Titled Tuesday Blitz"]
[Site "Chess.com"]
[Date "2020.11.10"]
[Round "4"]
[White "Luklei18"]
[Black "romulocardoso"]
[Result "0-1"]
[WhiteElo "2330"]
[BlackElo "2082"]
[TimeControl "180+1"]
[EndTime "10:41:05 PST"]
[Termination "romulocardoso won on time"]

1. c4 {[%clk 0:03:00.9]} 1... Nf6 {[%clk 0:02:59.3]} 2. Nc3 {[%clk 0:03:01]}
2... e6 {[%clk 0:02:58.7]} 3. Nf3 {[%clk 0:03:00.7]} 3... d5 {[%clk 0:02:58.4]}
4. e3 {[%clk 0:03:00.5]} 4... b6 {[%clk 0:02:56]} 5. cxd5 {[%clk 0:02:59.3]}
5... exd5 {[%clk 0:02:56.9]} 6. g3 {[%clk 0:02:59.8]} 6... Bb7 {[%clk
0:02:56.6]} 7. Bg2 {[%clk 0:03:00.2]} 7... Be7 {[%clk 0:02:55.3]} 8. O-O {[%clk
0:03:00.3]} 8... O-O {[%clk 0:02:54.8]} 9. b3 {[%clk 0:03:01]} 9... Re8 {[%clk
0:02:49.6]} 10. Bb2 {[%clk 0:03:01.4]} 10... c5 {[%clk 0:02:48.4]} 11. d4 {[%clk
0:02:57.5]} 11... Nbd7 {[%clk 0:02:47.7]} 12. Rc1 {[%clk 0:02:47.3]} 12... Ne4
{[%clk 0:02:46.8]} 13. dxc5 {[%clk 0:02:45.2]} 13... Ndxc5 {[%clk 0:02:44]} 14.
Nd4 {[%clk 0:02:33]} 14... Bf6 {[%clk 0:02:39.1]} 15. b4 {[%clk 0:02:07.4]}
15... Nxc3 {[%clk 0:02:32.3]} 16. Bxc3 {[%clk 0:02:01.6]} 16... Ne4 {[%clk
0:02:31.3]} 17. Bb2 {[%clk 0:01:56.2]} 17... Ba6 {[%clk 0:02:31.1]} 18. Re1
{[%clk 0:01:56.6]} 18... Rc8 {[%clk 0:02:26.7]} 19. Qa4 {[%clk 0:01:51.3]} 19...
Bc4 {[%clk 0:02:02.8]} 20. b5 {[%clk 0:01:40.9]} 20... Nc5 {[%clk 0:01:49.7]}
21. Qc2 {[%clk 0:00:37.8]} 21... Nd3 {[%clk 0:01:31]} 22. Nc6 {[%clk 0:00:37.8]}
22... Qd6 {[%clk 0:01:24.5]} 23. Bxf6 {[%clk 0:00:32.7]} 23... Qxf6 {[%clk
0:01:18.1]} 24. Nxa7 {[%clk 0:00:33.2]} 24... Ra8 {[%clk 0:01:11.4]} 25. Nc6
{[%clk 0:00:27.3]} 25... Rxa2 {[%clk 0:01:10]} 26. Re2 {[%clk 0:00:04.7]} 26...
Nxc1 {[%clk 0:01:03.5]} 0-1

[Event "*** Titled Tuesday Blitz"]
[Site "Chess.com"]
[Date "2020.11.10"]
[Round "4"]
[White "WeAintSurePal"]
[Black "crazy_but_lazy"]
[Result "0-1"]
[WhiteElo "2303"]
[BlackElo "2468"]
[TimeControl "180+1"]
[EndTime "10:41:06 PST"]
[Termination "crazy_but_lazy won by resignation"]

1. d4 {[%clk 0:03:00.9]} 1... Nf6 {[%clk 0:02:56.5]} 2. Nf3 {[%clk 0:02:57.5]}
2... e6 {[%clk 0:02:55.3]} 3. Bg5 {[%clk 0:02:54.6]} 3... d5 {[%clk 0:02:46.9]}
4. e3 {[%clk 0:02:52.9]} 4... Be7 {[%clk 0:02:45.6]} 5. Nbd2 {[%clk 0:02:52.2]}
5... O-O {[%clk 0:02:44.3]} 6. Bd3 {[%clk 0:02:51.9]} 6... h6 {[%clk 0:02:44.7]}
7. Bh4 {[%clk 0:02:45.1]} 7... b6 {[%clk 0:02:40.1]} 8. Ne5 {[%clk 0:02:44.6]}
8... Bb7 {[%clk 0:02:32.3]} 9. c3 {[%clk 0:02:44.3]} 9... Ne4 {[%clk 0:02:24.5]}
10. Bxe7 {[%clk 0:02:43]} 10... Qxe7 {[%clk 0:02:23.9]} 11. Qf3 {[%clk
0:02:42.1]} 11... Nxd2 {[%clk 0:02:19.2]} 12. Kxd2 {[%clk 0:02:43]} 12... Nd7
{[%clk 0:02:17]} 13. Nxd7 {[%clk 0:02:42.9]} 13... Qxd7 {[%clk 0:02:17.9]} 14.
h4 {[%clk 0:02:40.1]} 14... e5 {[%clk 0:02:09.5]} 15. dxe5 {[%clk 0:02:38.6]}
15... c5 {[%clk 0:01:58.3]} 16. Qf5 {[%clk 0:02:37.2]} 16... Qxf5 {[%clk
0:01:57.9]} 17. Bxf5 {[%clk 0:02:38.1]} 17... Rae8 {[%clk 0:01:50]} 18. f4
{[%clk 0:02:37]} 18... f6 {[%clk 0:01:49.8]} 19. exf6 {[%clk 0:02:23.5]} 19...
Rxf6 {[%clk 0:01:50.7]} 20. Bd3 {[%clk 0:02:22.7]} 20... d4 {[%clk 0:01:47.4]}
21. exd4 {[%clk 0:02:22.1]} 21... cxd4 {[%clk 0:01:40.5]} 22. Rae1 {[%clk
0:02:17.2]} 22... dxc3+ {[%clk 0:01:37.4]} 23. bxc3 {[%clk 0:02:14.9]} 23... Rd8
{[%clk 0:01:34]} 24. Re7 {[%clk 0:02:08.2]} 24... Ba6 {[%clk 0:01:27.1]} 25. Rh3
{[%clk 0:02:08.2]} 25... Bxd3 {[%clk 0:01:04.1]} 26. Rxd3 {[%clk 0:01:53.4]}
26... Rxd3+ {[%clk 0:01:05]} 27. Kxd3 {[%clk 0:01:54.3]} 27... Rxf4 {[%clk
0:01:05.3]} 28. Rxa7 {[%clk 0:01:53.1]} 28... Rxh4 {[%clk 0:01:05.2]} 29. Rb7
{[%clk 0:01:48.4]} 29... Rg4 {[%clk 0:01:01.7]} 30. Rxb6 {[%clk 0:01:48]} 30...
Rxg2 {[%clk 0:01:02]} 31. a4 {[%clk 0:01:47.9]} 31... Ra2 {[%clk 0:01:01.7]} 32.
Rb4 {[%clk 0:01:47.6]} 32... h5 {[%clk 0:01:00]} 33. Kc4 {[%clk 0:01:45.9]}
33... Kf7 {[%clk 0:00:56.3]} 34. Kb5 {[%clk 0:01:44.8]} 34... g5 {[%clk
0:00:56.9]} 35. a5 {[%clk 0:01:44.9]} 35... g4 {[%clk 0:00:56.8]} 36. a6 {[%clk
0:01:41.2]} 36... g3 {[%clk 0:00:55.2]} 37. Kb6 {[%clk 0:01:41.2]} 37... g2
{[%clk 0:00:51.8]} 38. Rb1 {[%clk 0:01:41.6]} 38... h4 {[%clk 0:00:52.2]} 39. a7
{[%clk 0:01:32.5]} 39... h3 {[%clk 0:00:50.4]} 40. Rg1 {[%clk 0:01:30.4]} 40...
Kf6 {[%clk 0:00:37]} 41. Kb7 {[%clk 0:01:29.9]} 41... Ke5 {[%clk 0:00:30.4]} 42.
Re1+ {[%clk 0:01:26.8]} 42... Kf4 {[%clk 0:00:30.2]} 43. Re2 {[%clk 0:01:22.8]}
43... Rxa7+ {[%clk 0:00:27]} 44. Kxa7 {[%clk 0:01:21.8]} 44... g1=Q+ {[%clk
0:00:27.5]} 45. Ka6 {[%clk 0:01:21]} 45... Qf1 {[%clk 0:00:27.2]} 0-1

[Event "*** Titled Tuesday Blitz"]
[Site "Chess.com"]
[Date "2020.11.10"]
[Round "4"]
[White "atalz0"]
[Black "pedromartinez91"]
[Result "0-1"]
[WhiteElo "2398"]
[BlackElo "2579"]
[TimeControl "180+1"]
[EndTime "10:41:09 PST"]
[Termination "pedromartinez91 won on time"]

1. d4 {[%clk 0:03:00.9]} 1... b6 {[%clk 0:02:54.5]} 2. e4 {[%clk 0:03:00.4]}
2... Bb7 {[%clk 0:02:55.4]} 3. Bd3 {[%clk 0:02:59.7]} 3... e6 {[%clk 0:02:56.3]}
4. Ne2 {[%clk 0:02:58.1]} 4... d5 {[%clk 0:02:56.5]} 5. Nbc3 {[%clk 0:02:43.1]}
5... Nf6 {[%clk 0:02:54]} 6. e5 {[%clk 0:02:38.8]} 6... Ne4 {[%clk 0:02:43.7]}
7. O-O {[%clk 0:02:36.1]} 7... Nxc3 {[%clk 0:02:42.4]} 8. Nxc3 {[%clk 0:02:19]}
8... c5 {[%clk 0:02:42.6]} 9. Be3 {[%clk 0:01:57]} 9... Nc6 {[%clk 0:02:38.3]}
10. Bb5 {[%clk 0:01:18]} 10... a6 {[%clk 0:02:37]} 11. Bxc6+ {[%clk 0:01:17.8]}
11... Bxc6 {[%clk 0:02:37.9]} 12. Qd2 {[%clk 0:01:16.8]} 12... Be7 {[%clk
0:02:37.7]} 13. Rad1 {[%clk 0:01:14]} 13... O-O {[%clk 0:02:37.2]} 14. Ne2
{[%clk 0:01:14.1]} 14... Bb5 {[%clk 0:02:34.5]} 15. Rfe1 {[%clk 0:01:14.4]}
15... Bxe2 {[%clk 0:02:34.1]} 16. Rxe2 {[%clk 0:01:14.5]} 16... Rc8 {[%clk
0:02:34]} 17. c3 {[%clk 0:01:14.4]} 17... b5 {[%clk 0:02:32.7]} 18. f4 {[%clk
0:01:04.7]} 18... cxd4 {[%clk 0:02:27.8]} 19. Bxd4 {[%clk 0:01:02.8]} 19... Qd7
{[%clk 0:02:27.2]} 20. Rf2 {[%clk 0:01:00.6]} 20... Bc5 {[%clk 0:02:26.9]} 21.
Bxc5 {[%clk 0:00:51]} 21... Rxc5 {[%clk 0:02:27.8]} 22. Qd3 {[%clk 0:00:50.1]}
22... g6 {[%clk 0:02:25.4]} 23. a3 {[%clk 0:00:49.9]} 23... Rc4 {[%clk
0:02:25.4]} 24. Rf3 {[%clk 0:00:49.5]} 24... Qc6 {[%clk 0:02:24.5]} 25. h4
{[%clk 0:00:48.6]} 25... Re4 {[%clk 0:02:18.6]} 26. h5 {[%clk 0:00:46.6]} 26...
Qc4 {[%clk 0:02:18.8]} 27. Qxc4 {[%clk 0:00:42.7]} 27... bxc4 {[%clk 0:02:18.9]}
28. Kf2 {[%clk 0:00:36.3]} 28... f6 {[%clk 0:02:14.2]} 29. hxg6 {[%clk
0:00:23.5]} 29... hxg6 {[%clk 0:02:14]} 30. Re1 {[%clk 0:00:19]} 30... Rxe1
{[%clk 0:02:07.2]} 31. Kxe1 {[%clk 0:00:19.9]} 31... fxe5 {[%clk 0:02:07.9]} 32.
fxe5 {[%clk 0:00:19.9]} 32... Rxf3 {[%clk 0:02:03.1]} 33. gxf3 {[%clk
0:00:20.8]} 33... g5 {[%clk 0:02:03.3]} 34. Kf2 {[%clk 0:00:18.4]} 34... Kg7
{[%clk 0:02:03.8]} 35. Kg3 {[%clk 0:00:15.1]} 35... a5 {[%clk 0:02:02.8]} 36. a4
{[%clk 0:00:14.8]} 36... Kh6 {[%clk 0:02:02.8]} 37. f4 {[%clk 0:00:09.2]} 37...
gxf4+ {[%clk 0:01:59.8]} 38. Kxf4 {[%clk 0:00:10.1]} 38... Kh5 {[%clk
0:02:00.6]} 39. Ke3 {[%clk 0:00:08.6]} 39... Kg5 {[%clk 0:02:00.6]} 40. Kd4
{[%clk 0:00:07.7]} 40... Kf4 {[%clk 0:02:01.1]} 41. Kc5 {[%clk 0:00:06.8]} 41...
Kxe5 {[%clk 0:02:01.6]} 42. Kb5 {[%clk 0:00:07.1]} 42... Kd6 {[%clk 0:01:56.5]}
43. Kxa5 {[%clk 0:00:04]} 43... Kc7 {[%clk 0:01:42.8]} 44. Kb5 {[%clk 0:00:02]}
44... e5 {[%clk 0:01:43.2]} 45. Kc5 {[%clk 0:00:01.6]} 45... e4 {[%clk
0:01:43.2]} 0-1

[Event "*** Titled Tuesday Blitz"]
[Site "Chess.com"]
[Date "2020.11.10"]
[Round "4"]
[White "No_t_ime_to_die"]
[Black "Manukyan_Artak"]
[Result "0-1"]
[WhiteElo "2475"]
[BlackElo "2346"]
[TimeControl "180+1"]
[EndTime "10:41:09 PST"]
[Termination "Manukyan_Artak won by resignation"]

1. e4 {[%clk 0:03:00.9]} 1... c6 {[%clk 0:02:59.5]} 2. d4 {[%clk 0:02:56.7]}
2... d5 {[%clk 0:02:58.2]} 3. f3 {[%clk 0:02:57.6]} 3... Nf6 {[%clk 0:02:56.3]}
4. e5 {[%clk 0:02:54.9]} 4... Nfd7 {[%clk 0:02:56.2]} 5. e6 {[%clk 0:02:38.2]}
5... fxe6 {[%clk 0:02:54.6]} 6. f4 {[%clk 0:02:38.7]} 6... e5 {[%clk 0:02:51.7]}
7. fxe5 {[%clk 0:02:37]} 7... e6 {[%clk 0:02:52]} 8. Bd3 {[%clk 0:02:34.1]} 8...
g6 {[%clk 0:02:48.5]} 9. Nf3 {[%clk 0:02:32]} 9... Be7 {[%clk 0:02:46.9]} 10.
Bh6 {[%clk 0:02:28.7]} 10... c5 {[%clk 0:02:42.5]} 11. c3 {[%clk 0:02:18.2]}
11... Nc6 {[%clk 0:02:41.2]} 12. O-O {[%clk 0:02:16.5]} 12... Qb6 {[%clk
0:02:31.5]} 13. Bg5 {[%clk 0:01:39.9]} 13... cxd4 {[%clk 0:02:07.3]} 14. cxd4
{[%clk 0:01:32.1]} 14... Nxd4 {[%clk 0:01:58.3]} 15. Kh1 {[%clk 0:01:28.9]}
15... Nxf3 {[%clk 0:01:53.7]} 16. Bxe7 {[%clk 0:01:27.1]} 16... Kxe7 {[%clk
0:01:46.9]} 17. Rxf3 {[%clk 0:01:06]} 17... Nxe5 {[%clk 0:01:29]} 18. Nc3 {[%clk
0:00:46.1]} 18... Nxf3 {[%clk 0:01:24.2]} 19. Qxf3 {[%clk 0:00:38.4]} 19... Rf8
{[%clk 0:01:14]} 20. Qe2 {[%clk 0:00:35.5]} 20... Kd8 {[%clk 0:01:08.8]} 21. Re1
{[%clk 0:00:29.7]} 21... Qf2 {[%clk 0:00:58.8]} 22. Qe5 {[%clk 0:00:28.7]} 22...
Bd7 {[%clk 0:00:51.2]} 23. Nxd5 {[%clk 0:00:18.9]} 23... exd5 {[%clk 0:00:45.9]}
24. Qe7+ {[%clk 0:00:18.7]} 24... Kc8 {[%clk 0:00:41.9]} 25. Qxf8+ {[%clk
0:00:16.6]} 25... Qxf8 {[%clk 0:00:41]} 0-1

[Event "*** Titled Tuesday Blitz"]
[Site "Chess.com"]
[Date "2020.11.10"]
[Round "4"]
[White "GelmanAlexander"]
[Black "KyrgyzFighter"]
[Result "1-0"]
[WhiteElo "2586"]
[BlackElo "2352"]
[TimeControl "180+1"]
[EndTime "10:41:10 PST"]
[Termination "GelmanAlexander won by resignation"]

1. d4 {[%clk 0:03:00.9]} 1... Nf6 {[%clk 0:03:00.2]} 2. Nc3 {[%clk 0:03:00.8]}
2... c5 {[%clk 0:02:57.3]} 3. d5 {[%clk 0:03:00.9]} 3... e5 {[%clk 0:02:54.3]}
4. e4 {[%clk 0:03:00.2]} 4... d6 {[%clk 0:02:54.5]} 5. Nf3 {[%clk 0:03:00]} 5...
Be7 {[%clk 0:02:54.8]} 6. Be2 {[%clk 0:02:59.2]} 6... O-O {[%clk 0:02:55.3]} 7.
O-O {[%clk 0:02:59.2]} 7... a6 {[%clk 0:02:53.1]} 8. a4 {[%clk 0:02:59]} 8... g6
{[%clk 0:02:51.2]} 9. a5 {[%clk 0:02:54.1]} 9... Ne8 {[%clk 0:02:51.1]} 10. Nd2
{[%clk 0:02:46.8]} 10... Ng7 {[%clk 0:02:50]} 11. Nc4 {[%clk 0:02:46.6]} 11...
f5 {[%clk 0:02:49.7]} 12. Nb6 {[%clk 0:02:43.8]} 12... Ra7 {[%clk 0:02:49.4]}
13. Nca4 {[%clk 0:02:25.6]} 13... fxe4 {[%clk 0:02:29.8]} 14. Nxc8 {[%clk
0:02:23.1]} 14... Qxc8 {[%clk 0:02:28.6]} 15. Bg4 {[%clk 0:02:19.2]} 15... Qd8
{[%clk 0:02:13.1]} 16. Nb6 {[%clk 0:02:13.6]} 16... Bg5 {[%clk 0:02:11.6]} 17.
Ra4 {[%clk 0:02:04.1]} 17... Nf5 {[%clk 0:01:59.6]} 18. Rxe4 {[%clk 0:01:54.5]}
18... Bxc1 {[%clk 0:01:51.1]} 19. Qxc1 {[%clk 0:01:55.4]} 19... Nd7 {[%clk
0:01:51]} 20. Nxd7 {[%clk 0:01:41.1]} 20... Qxd7 {[%clk 0:01:51.9]} 21. f4
{[%clk 0:01:29.8]} 21... exf4 {[%clk 0:01:38.8]} 22. Rexf4 {[%clk 0:01:18.6]}
22... Raa8 {[%clk 0:01:32.5]} 23. Bxf5 {[%clk 0:01:17.9]} 23... Rxf5 {[%clk
0:01:31.7]} 24. Rxf5 {[%clk 0:01:16.7]} 24... gxf5 {[%clk 0:01:32.6]} 25. Qg5+
{[%clk 0:01:15.8]} 25... Kh8 {[%clk 0:01:29.4]} 26. Rxf5 {[%clk 0:01:01]} 26...
Rg8 {[%clk 0:01:10]} 27. Qf6+ {[%clk 0:00:58.3]} 27... Rg7 {[%clk 0:01:10]} 28.
Rg5 {[%clk 0:00:49]} 28... Qe7 {[%clk 0:00:53.5]} 29. Qxg7+ {[%clk 0:00:45]}
29... Qxg7 {[%clk 0:00:52.8]} 30. Rxg7 {[%clk 0:00:45.9]} 30... Kxg7 {[%clk
0:00:53.7]} 31. Kf2 {[%clk 0:00:45.2]} 31... Kf6 {[%clk 0:00:54.6]} 32. c4
{[%clk 0:00:42.8]} 32... h6 {[%clk 0:00:50.3]} 33. Ke3 {[%clk 0:00:40.3]} 33...
Ke5 {[%clk 0:00:50.2]} 34. g4 {[%clk 0:00:39.5]} 34... Kf6 {[%clk 0:00:48.1]}
35. Kf4 {[%clk 0:00:39.4]} 35... Kg6 {[%clk 0:00:48.4]} 36. h4 {[%clk
0:00:39.4]} 36... Kf6 {[%clk 0:00:48.6]} 37. g5+ {[%clk 0:00:39.8]} 37... hxg5+
{[%clk 0:00:48.6]} 38. hxg5+ {[%clk 0:00:40.7]} 38... Kg6 {[%clk 0:00:49.2]} 39.
Kg4 {[%clk 0:00:41.6]} 1-0

[Event "*** Titled Tuesday Blitz"]
[Site "Chess.com"]
[Date "2020.11.10"]
[Round "4"]
[White "Kaslask"]
[Black "zajka-molotok"]
[Result "1-0"]
[WhiteElo "2367"]
[BlackElo "2519"]
[TimeControl "180+1"]
[EndTime "10:41:15 PST"]
[Termination "Kaslask won on time"]

1. d4 {[%clk 0:03:00.9]} 1... Nf6 {[%clk 0:02:59.4]} 2. c4 {[%clk 0:03:00.6]}
2... e6 {[%clk 0:02:59.8]} 3. Nc3 {[%clk 0:03:00.5]} 3... Bb4 {[%clk 0:02:59.6]}
4. e3 {[%clk 0:03:00.4]} 4... O-O {[%clk 0:02:58.8]} 5. Bd3 {[%clk 0:03:00.1]}
5... d5 {[%clk 0:02:58.1]} 6. a3 {[%clk 0:02:58.1]} 6... Bxc3+ {[%clk
0:02:45.1]} 7. bxc3 {[%clk 0:02:57.4]} 7... b6 {[%clk 0:02:36.1]} 8. Nf3 {[%clk
0:02:56]} 8... dxc4 {[%clk 0:02:32.3]} 9. Bxc4 {[%clk 0:02:55]} 9... Bb7 {[%clk
0:02:29.6]} 10. O-O {[%clk 0:02:54.3]} 10... Nbd7 {[%clk 0:02:29.1]} 11. Qe2
{[%clk 0:02:50.4]} 11... c5 {[%clk 0:02:27.2]} 12. Rd1 {[%clk 0:02:49.4]} 12...
Qc7 {[%clk 0:02:25.6]} 13. Bb2 {[%clk 0:02:47.1]} 13... Rac8 {[%clk 0:02:06.7]}
14. Bd3 {[%clk 0:02:45]} 14... c4 {[%clk 0:01:50.3]} 15. Bc2 {[%clk 0:02:41.7]}
15... Ne4 {[%clk 0:01:42.9]} 16. Nd2 {[%clk 0:02:36.1]} 16... Nxd2 {[%clk
0:01:41.1]} 17. Rxd2 {[%clk 0:02:35.9]} 17... f5 {[%clk 0:01:39.1]} 18. a4
{[%clk 0:02:34.2]} 18... Nf6 {[%clk 0:01:37.1]} 19. f3 {[%clk 0:02:33.2]} 19...
Rfe8 {[%clk 0:01:28.9]} 20. Ba3 {[%clk 0:02:31.9]} 20... Qc6 {[%clk 0:01:09.6]}
21. Bb4 {[%clk 0:02:28.9]} 21... Nd5 {[%clk 0:00:58.5]} 22. a5 {[%clk
0:02:21.7]} 22... Nxb4 {[%clk 0:00:57.3]} 23. cxb4 {[%clk 0:02:20.8]} 23... b5
{[%clk 0:00:56.7]} 24. Kh1 {[%clk 0:02:08.6]} 24... a6 {[%clk 0:00:45.3]} 25.
Rdd1 {[%clk 0:02:07.8]} 25... Qd6 {[%clk 0:00:45]} 26. Rab1 {[%clk 0:02:04.1]}
26... g6 {[%clk 0:00:37.8]} 27. Qf2 {[%clk 0:02:03.1]} 27... Kg7 {[%clk
0:00:36.8]} 28. Qg3 {[%clk 0:02:02.1]} 28... Qxg3 {[%clk 0:00:35.3]} 29. hxg3
{[%clk 0:02:01.8]} 29... Rcd8 {[%clk 0:00:30.2]} 30. Kg1 {[%clk 0:02:01.2]}
30... Kf6 {[%clk 0:00:29.3]} 31. Kf2 {[%clk 0:02:00.7]} 31... h5 {[%clk
0:00:23.7]} 32. Ke2 {[%clk 0:01:58.4]} 32... Rh8 {[%clk 0:00:16.9]} 33. Kf2
{[%clk 0:01:57.9]} 33... h4 {[%clk 0:00:16.6]} 34. gxh4 {[%clk 0:01:57]} 34...
Rxh4 {[%clk 0:00:17.5]} 35. Rh1 {[%clk 0:01:56.2]} 35... Rdh8 {[%clk 0:00:16.6]}
36. Rxh4 {[%clk 0:01:55.7]} 36... Rxh4 {[%clk 0:00:17.5]} 37. Re1 {[%clk
0:01:54.6]} 37... Rh8 {[%clk 0:00:15.2]} 38. Rd1 {[%clk 0:01:53.6]} 38... Rd8
{[%clk 0:00:14.6]} 39. e4 {[%clk 0:01:51.8]} 39... fxe4 {[%clk 0:00:13.5]} 40.
fxe4 {[%clk 0:01:51.1]} 40... Ke7 {[%clk 0:00:10]} 41. Ke2 {[%clk 0:01:48.1]}
41... Kd6 {[%clk 0:00:08.5]} 42. Rf1 {[%clk 0:01:47.4]} 42... Ke7 {[%clk
0:00:07.2]} 43. Ke3 {[%clk 0:01:46.9]} 43... Rh8 {[%clk 0:00:06.9]} 44. Rf2
{[%clk 0:01:45.2]} 44... Rh4 {[%clk 0:00:06.5]} 45. e5 {[%clk 0:01:44.3]} 45...
Rg4 {[%clk 0:00:05.4]} 46. Bb1 {[%clk 0:01:40.6]} 46... Rg3+ {[%clk 0:00:02.9]}
47. Ke2 {[%clk 0:01:40.1]} 47... Rb3 {[%clk 0:00:02.7]} 48. Bxg6 {[%clk
0:01:38.7]} 1-0